bitfinex/quotes_BTCUSD_20220307
["timestamp","ask_amount","ask_price","bid_price","bid_amount"]
[1646672257699,0.15,38836.0,38825.0,0.02532]
[1646672258096,0.15,38836.0,38827.0,0.02532]
[1646672258342,0.15,38836.0,38834.0,0.22278937]
[1646672258541,0.15,38836.0,38834.0,0.14715496]
[1646672258745,0.34957807,38837.0,38834.0,0.114401]
[1646672259141,0.34957807,38837.0,38835.0,0.03294593]
[1646672259142,0.004,38836.0,38835.0,0.03294593]
[1646672259542,0.09486,38845.0,38836.0,1.2]
[1646672259743,0.082,38845.0,38837.0,0.414387]
[1646672259943,0.4737,38850.0,38837.0,0.414387]
[1646672259944,0.48656,38850.0,38837.0,0.439707]
[1646672260143,0.15,38849.0,38839.0,0.1998]
[1646672260344,0.15,38840.0,38836.0,0.178773]
[1646672260550,0.214411,38837.0,38823.0,0.111711]
[1646672260746,0.15,38833.0,38824.0,0.03064124]
[1646672260946,0.364411,38837.0,38832.0,0.064413]
[1646672260947,0.064411,38837.0,38832.0,0.064413]
[1646672261147,0.15,38837.0,38832.0,0.064413]
[1646672261345,0.31757056,38837.0,38832.0,0.2371911]
[1646672261744,0.16757056,38837.0,38832.0,0.2371911]
[1646672261948,0.00032925,38836.0,38835.0,0.71249318]
[1646672262394,0.00032925,38836.0,38835.0,0.76249318]
[1646672262695,0.15,38838.0,38835.0,0.76249318]
[1646672262894,0.19663329,38837.0,38835.0,0.76249318]
[1646672263096,0.002,38836.0,38835.0,0.76249318]
[1646672263698,0.00187764,38836.0,38835.0,0.76249318]
[1646672263896,0.30187764,38836.0,38835.0,0.71249318]
[1646672264099,0.00187764,38836.0,38835.0,0.71249318]
[1646672264300,0.41137053,38837.0,38835.0,0.71249318]
[1646672264500,0.3,38836.0,38835.0,0.05405377]
[1646672264699,0.06792074,38834.0,38817.0,0.2043]
[1646672264898,0.2,38829.0,38823.0,0.064428]
[1646672265100,0.428843,38833.0,38823.0,0.064428]
[1646672265298,0.15,38824.0,38823.0,0.064428]
[1646672265699,0.46802469,38829.0,38823.0,0.064428]
[1646672265947,0.15,38824.0,38823.0,0.064428]
[1646672266347,0.15,38824.0,38822.0,0.128855]
[1646672266348,0.94802,38824.0,38822.0,0.128855]
[1646672266549,0.25,38822.0,38821.0,0.1999]
[1646672266747,0.28866925,38816.0,38808.0,0.19770496]
[1646672266948,0.28866925,38816.0,38808.0,0.26214796]
[1646672267149,0.19924479,38815.0,38806.0,0.12239161]
[1646672267346,0.43866925,38816.0,38807.0,0.20871886]
[1646672267546,0.15,38816.0,38810.0,0.064439]
[1646672267746,0.3,38820.0,38810.0,0.064439]
[1646672267747,0.14952939,38815.0,38810.0,0.064439]
[1646672267950,0.14952939,38815.0,38811.0,0.064437]
[1646672268146,0.00031799,38820.0,38811.0,0.064437]
[1646672268349,0.14984738,38820.0,38813.0,0.38424395]
[1646672268547,0.14952939,38817.0,38813.0,0.20755438]
[1646672268949,0.002,38820.0,38813.0,0.20755438]
[1646672269151,0.15183705,38820.0,38813.0,0.20755438]
[1646672269347,0.15183705,38820.0,38814.0,0.128857]
[1646672269594,0.14952939,38817.0,38814.0,0.128857]
[1646672269996,0.14952939,38817.0,38815.0,0.1999]
[1646672270198,0.29244127,38819.0,38816.0,0.05]
[1646672270395,0.29244127,38819.0,38816.0,0.114438]
[1646672270798,0.14952939,38817.0,38816.0,0.114438]
[1646672271402,0.29544127,38819.0,38816.0,0.114438]
[1646672271403,0.003,38819.0,38816.0,0.114438]
[1646672271600,0.14952939,38817.0,38816.0,0.114438]
[1646672272000,0.15252939,38819.0,38816.0,0.114438]
[1646672272302,0.14952939,38819.0,38818.0,0.03290821]
[1646672272499,0.14952939,38819.0,38818.0,0.23270821]
[1646672273949,0.14983775,38820.0,38818.0,0.23270821]
[1646672274751,0.59952939,38820.0,38818.0,0.1998]
[1646672275149,0.62484939,38820.0,38818.0,0.1998]
[1646672275349,0.64682939,38820.0,38812.0,0.0283382]
[1646672275550,0.22194415,38817.0,38812.0,0.2234703]
[1646672276049,0.22194415,38817.0,38816.0,0.03498326]
[1646672276249,0.37147354,38817.0,38816.0,0.03498326]
[1646672276449,0.14952939,38817.0,38816.0,0.03498326]
[1646672276850,0.14952939,38817.0,38815.0,0.15491656]
[1646672277091,0.15252939,38817.0,38815.0,0.15491656]
[1646672278390,0.14952939,38817.0,38815.0,0.15491656]
[1646672278590,0.14952939,38817.0,38815.0,0.35471656]
[1646672278992,0.15252939,38817.0,38815.0,0.35471656]
[1646672279191,0.15252939,38817.0,38816.0,0.26487548]
[1646672279394,0.00030831,38820.0,38817.0,1.5]
[1646672279593,0.14952939,38823.0,38820.0,0.064424]
[1646672279995,0.14952939,38823.0,38821.0,0.03442547]
[1646672280197,0.14952939,38823.0,38821.0,0.47750147]
[1646672280398,0.03440029,38819.0,38809.0,0.3]
[1646672280597,0.03440029,38819.0,38808.0,0.31674445]
[1646672280598,0.14952939,38818.0,38808.0,0.31674445]
[1646672280843,0.03440029,38819.0,38809.0,0.98097792]
[1646672281048,0.03640029,38819.0,38809.0,1.28097792]
[1646672281246,0.21415504,38818.0,38809.0,1.28097792]
[1646672281441,0.21415504,38818.0,38810.0,0.15409716]
[1646672281641,0.03640029,38819.0,38811.0,0.428881]
[1646672282041,0.03640029,38819.0,38811.0,0.128881]
[1646672282242,0.03440029,38819.0,38813.0,0.03206118]
[1646672282643,0.09883929,38819.0,38813.0,0.08206118]
[1646672282845,0.09883929,38819.0,38813.0,0.03206118]
[1646672283046,0.09883929,38819.0,38816.0,0.064443]
[1646672283446,0.03440029,38819.0,38818.0,0.03488133]
[1646672283845,0.00030858,38820.0,38818.0,0.03488133]
[1646672284046,0.00030858,38820.0,38819.0,0.18407399]
[1646672284443,0.49085855,38828.0,38821.0,0.064426]
[1646672284692,0.45,38829.0,38822.0,0.02514984]
[1646672285090,0.002,38828.0,38827.0,0.02953786]
[1646672285291,0.002,38828.0,38827.0,0.07953786]
[1646672286392,0.002,38828.0,38827.0,0.37953786]
[1646672286595,0.22346,38839.0,38828.0,0.85]
[1646672286796,0.50596,38843.0,38829.0,1.45]
[1646672286995,0.01286,38842.0,38830.0,0.05]
[1646672287192,0.21038632,38841.0,38837.0,0.15926507]
[1646672287395,0.03818,38845.0,38838.0,0.064394]
[1646672287591,0.01286,38845.0,38838.0,0.114394]
[1646672287792,0.84706779,38848.0,38838.0,0.114394]
[1646672287993,0.01287,38847.0,38839.0,0.064392]
[1646672288194,0.64706779,38848.0,38839.0,0.414392]
[1646672288450,0.4459,38848.0,38845.0,0.0648]
[1646672288648,0.04400734,38842.0,38841.0,0.6]
[1646672289548,0.25,38851.0,38842.0,0.7]
[1646672289748,0.45116779,38851.0,38843.0,0.35]
[1646672289948,0.064384,38852.0,38843.0,0.05]
[1646672290147,0.064384,38852.0,38843.0,0.39336241]
[1646672290347,0.064384,38852.0,38843.0,0.52213041]
[1646672290547,0.064384,38852.0,38843.0,0.82213041]
[1646672290753,0.00032949,38849.0,38844.0,0.064384]
[1646672291049,0.00032949,38849.0,38844.0,0.059384]
[1646672291649,0.21266985,38850.0,38844.0,0.059384]
[1646672291851,0.26943754,38845.0,38844.0,0.059384]
[1646672292898,0.25,38847.0,38844.0,0.059384]
[1646672293094,0.41383764,38850.0,38844.0,0.059384]
[1646672293095,0.004,38845.0,38844.0,0.059384]
[1646672294106,1.0267,38845.0,38843.0,0.128768]
[1646672294306,1.0267,38845.0,38843.0,0.123768]
[1646672294307,0.92,38844.0,38843.0,0.123768]
[1646672294698,1.12116779,38844.0,38843.0,0.123768]
[1646672295595,1.14648779,38844.0,38841.0,0.128812]
[1646672295850,0.128814,38842.0,38841.0,0.128812]
[1646672296045,0.176114,38842.0,38841.0,0.178812]
[1646672296247,0.276114,38842.0,38841.0,0.178812]
[1646672296445,0.1473,38842.0,38841.0,0.05]
[1646672296846,0.1473,38842.0,38840.0,0.128816]
[1646672297045,0.3973,38842.0,38840.0,0.128816]
[1646672297248,0.3973,38842.0,38824.0,0.662393]
[1646672297445,0.2973,38842.0,38838.0,0.1998]
[1646672297647,0.361701,38842.0,38838.0,0.1998]
[1646672298048,0.00031823,38839.0,38838.0,0.1998]
[1646672298249,0.00031823,38839.0,38838.0,0.393001]
[1646672298649,0.314401,38842.0,38838.0,0.393001]
[1646672298848,0.314401,38842.0,38839.0,0.22763306]
[1646672299349,0.314401,38842.0,38839.0,0.27763306]
[1646672299590,0.314401,38842.0,38839.0,0.34203206]
[1646672299992,0.24846779,38845.0,38839.0,0.34203206]
[1646672299993,0.064396,38845.0,38839.0,0.34203206]
[1646672300196,0.064396,38845.0,38839.0,0.14223206]
[1646672300394,0.064396,38845.0,38839.0,0.13723206]
[1646672300593,0.064396,38845.0,38831.0,1.35]
[1646672300791,0.24338359,38847.0,38831.0,1.35]
[1646672301001,0.004,38845.0,38843.0,0.09629807]
[1646672301692,0.004,38845.0,38843.0,0.29609807]
[1646672301892,0.004,38845.0,38843.0,0.09629807]
[1646672302092,0.004,38845.0,38844.0,0.05]
[1646672302694,0.21402779,38853.0,38844.0,0.05]
[1646672302895,0.00131783,38853.0,38845.0,0.128757]
[1646672303093,0.00131783,38853.0,38852.0,0.20640232]
[1646672303350,0.00131783,38853.0,38850.0,0.2047832]
[1646672303351,0.05908479,38851.0,38850.0,0.37836746]
[1646672303550,0.56820376,38857.0,38850.0,0.37836746]
[1646672303551,0.36703597,38857.0,38851.0,1.3]
[1646672304145,0.36703597,38857.0,38855.0,0.03084028]
[1646672304544,0.36298878,38857.0,38855.0,0.03084028]
[1646672304946,0.36298878,38857.0,38855.0,0.09521228]
[1646672305246,0.36598878,38857.0,38855.0,0.09521228]
[1646672305444,0.20116779,38863.0,38857.0,0.55]
[1646672305647,0.25,38864.0,38859.0,0.193084]
[1646672305846,0.25,38864.0,38859.0,0.22480513]
[1646672306049,0.20116779,38866.0,38859.0,0.22480513]
[1646672306246,0.20116779,38867.0,38861.0,0.19528797]
[1646672306447,0.97386779,38869.0,38862.0,0.21982989]
[1646672306647,0.26553079,38869.0,38861.0,0.19528797]
[1646672306846,0.26053079,38869.0,38861.0,0.193079]
[1646672307087,0.20116779,38869.0,38862.0,0.064362]
[1646672307288,0.7727,38869.0,38863.0,0.02964103]
[1646672307488,0.7727,38869.0,38862.0,0.064362]
[1646672307489,0.25,38864.0,38862.0,0.064362]
[1646672307690,0.25,38864.0,38863.0,0.02622327]
[1646672308797,1.14802,38864.0,38862.0,0.064362]
[1646672308992,1.14802,38864.0,38858.0,0.1998]
[1646672308993,0.02532,38863.0,38858.0,0.1998]
[1646672309193,1.04802,38862.0,38860.0,0.064386]
[1646672309391,1.12,38861.0,38860.0,0.064386]
[1646672309592,1.22,38861.0,38860.0,0.064386]
[1646672310593,1.1727,38861.0,38860.0,0.064386]
[1646672310844,0.8727,38861.0,38860.0,0.064386]
[1646672311046,0.8757,38861.0,38860.0,0.064386]
[1646672311356,0.103,38861.0,38860.0,0.064386]
[1646672311550,0.8757,38861.0,38860.0,0.064386]
[1646672312145,0.103,38861.0,38860.0,0.064386]
[1646672312345,0.8727,38861.0,38860.0,0.064386]
[1646672312951,0.1,38861.0,38860.0,0.064386]
[1646672313347,0.02532,38860.0,38857.0,0.17073026]
[1646672314145,0.35031955,38862.0,38857.0,0.17073026]
[1646672314348,0.10031955,38862.0,38858.0,0.064369]
[1646672314596,0.1,38862.0,38858.0,0.064369]
[1646672314796,0.00031956,38861.0,38858.0,0.064369]
[1646672314996,0.00031956,38861.0,38859.0,0.07073307]
[1646672315297,0.00031956,38861.0,38859.0,0.16792757]
[1646672315695,1.1227,38868.0,38861.0,0.064361]
[1646672316095,0.00030785,38862.0,38861.0,0.09813825]
[1646672316797,0.00030785,38862.0,38861.0,0.17233891]
[1646672316996,0.064356,38873.0,38861.0,0.17233891]
[1646672317197,0.004,38862.0,38861.0,0.17233891]
[1646672317397,0.004,38862.0,38861.0,0.09813825]
[1646672317594,0.004,38862.0,38861.0,0.03377725]
[1646672318451,0.00010616,38863.0,38861.0,0.10156574]
[1646672319246,0.7727,38874.0,38861.0,0.10156574]
[1646672319447,0.7727,38874.0,38870.0,0.21636897]
[1646672320450,0.7727,38874.0,38865.0,0.21507772]
[1646672320650,0.92705097,38874.0,38865.0,0.21507772]
[1646672320850,0.92705097,38874.0,38865.0,0.24839127]
[1646672320851,0.92735978,38874.0,38865.0,0.24839127]
[1646672321052,0.15465978,38874.0,38866.0,0.19391366]
[1646672321250,0.15465978,38874.0,38870.0,0.06435]
[1646672321449,0.15465978,38874.0,38870.0,0.09435808]
[1646672321654,0.064351,38876.0,38870.0,0.09435808]
[1646672321850,0.3499,38878.0,38870.0,0.09435808]
[1646672322111,0.00030881,38874.0,38870.0,0.09435808]
[1646672322705,0.2057557,38872.0,38870.0,0.09435808]
[1646672323307,0.2057557,38872.0,38869.0,0.01635258]
[1646672323708,0.2057557,38872.0,38870.0,0.03215659]
[1646672323909,0.00430875,38874.0,38870.0,0.09650659]
[1646672324107,0.004,38874.0,38870.0,0.09650659]
[1646672324508,0.00030876,38873.0,38870.0,0.09650659]
[1646672325108,0.00330876,38873.0,38870.0,0.09650659]
[1646672325308,0.003,38873.0,38870.0,0.09650659]
[1646672325507,0.00330875,38873.0,38870.0,0.09650659]
[1646672325708,0.00330875,38873.0,38870.0,0.59650659]
[1646672326352,0.00030875,38873.0,38870.0,0.59650659]
[1646672326553,0.16453324,38874.0,38870.0,0.59650659]
[1646672326856,0.00010616,38873.0,38870.0,0.59650659]
[1646672327252,0.00010616,38873.0,38869.0,0.01635258]
[1646672327653,1.00558624,38874.0,38869.0,0.01635258]
[1646672327851,1.00558624,38874.0,38870.0,0.06435]
[1646672328052,0.00010616,38873.0,38870.0,0.06435]
[1646672328453,0.00010616,38873.0,38870.0,0.09698429]
[1646672328854,0.97567724,38874.0,38870.0,0.06435]
[1646672329052,0.28675875,38871.0,38870.0,0.06435]
[1646672329257,1.91976653,38871.0,38868.0,0.04799742]
[1646672329460,1.91976653,38871.0,38862.0,0.5]
[1646672329461,0.79802,38868.0,38862.0,0.5]
[1646672329704,0.25,38864.0,38853.0,0.35555451]
[1646672329904,0.0473,38863.0,38858.0,0.128741]
[1646672330106,0.22021913,38863.0,38858.0,0.128741]
[1646672330506,0.00033015,38860.0,38858.0,0.128741]
[1646672331206,0.00433015,38860.0,38858.0,0.128741]
[1646672331408,0.004,38860.0,38858.0,0.128741]
[1646672332208,0.004,38860.0,38858.0,0.178741]
[1646672332409,0.00033015,38861.0,38858.0,0.178741]
[1646672332608,0.30726656,38866.0,38859.0,0.3]
[1646672332609,0.1,38866.0,38859.0,0.3]
[1646672332809,0.00033015,38861.0,38860.0,0.064354]
[1646672333012,0.00033015,38861.0,38860.0,0.364354]
[1646672333209,0.00033015,38861.0,38860.0,0.389674]
[1646672333653,1.5e-07,38861.0,38860.0,0.788657]
[1646672333856,0.75722,38880.0,38865.0,0.064342]
[1646672333857,0.4988,38878.0,38865.0,0.064342]
[1646672334055,0.1916,38882.0,38865.0,0.064342]
[1646672334056,0.24553006,38881.0,38866.0,0.52295802]
[1646672334352,0.00131969,38868.0,38867.0,0.17418338]
[1646672334554,0.00131969,38868.0,38867.0,0.47418338]
[1646672334754,9.69e-06,38868.0,38867.0,0.698983]
[1646672334953,0.7047,38888.0,38867.0,0.698983]
[1646672334954,0.7727,38884.0,38867.0,0.3]
[1646672335153,0.7727,38884.0,38871.0,0.064331]
[1646672335352,0.7727,38884.0,38869.0,0.192991]
[1646672335353,0.7727,38884.0,38872.0,0.3]
[1646672335554,0.7727,38884.0,38870.0,0.3]
[1646672335751,0.7727,38884.0,38880.0,0.2084007]
[1646672336152,0.7727,38886.0,38880.0,0.2084007]
[1646672336553,0.83703,38886.0,38880.0,0.2084007]
[1646672336754,0.83703,38886.0,38871.0,0.0477]
[1646672336954,0.7727,38884.0,38876.0,0.128665]
[1646672337206,0.7727,38884.0,38872.0,0.3]
[1646672337399,0.79802,38884.0,38872.0,0.3]
[1646672337800,0.83714851,38882.0,38873.0,0.1987419]
[1646672338100,0.06444851,38882.0,38873.0,0.1987419]
[1646672338299,0.06444851,38882.0,38874.0,0.128675]
[1646672338501,0.06444851,38882.0,38874.0,0.428675]
[1646672338701,0.064343,38882.0,38874.0,0.428675]
[1646672338906,0.06467181,38879.0,38874.0,0.428675]
[1646672339501,0.06467181,38879.0,38874.0,0.128675]
[1646672339809,0.32130214,38879.0,38872.0,0.128681]
[1646672340003,0.77302982,38878.0,38868.0,0.01285]
[1646672340202,0.064352,38875.0,38866.0,0.54802993]
[1646672340402,0.837052,38875.0,38866.0,0.54802993]
[1646672340604,0.7727,38873.0,38866.0,0.04802993]
[1646672340876,0.01686302,38865.0,38864.0,0.064358]
[1646672341083,0.01686302,38865.0,38861.0,0.128715]
[1646672342076,0.01686302,38865.0,38863.0,0.1698998]
[1646672342478,0.01686302,38865.0,38862.0,0.05]
[1646672342678,0.01686302,38865.0,38861.0,0.00030794]
[1646672342679,0.837067,38864.0,38861.0,0.00030794]
[1646672342876,0.7727,38863.0,38861.0,0.00030794]
[1646672343077,0.8242,38862.0,38861.0,0.00030794]
[1646672343477,0.23171112,38862.0,38855.0,0.20480892]
[1646672343677,0.064372,38861.0,38853.0,0.20417254]
[1646672343878,0.064372,38861.0,38860.0,0.00030795]
[1646672344076,0.115872,38861.0,38860.0,0.00030795]
[1646672344699,0.110472,38861.0,38856.0,0.064372]
[1646672344901,0.7727,38860.0,38859.0,0.00030795]
[1646672345105,0.952963,38860.0,38859.0,0.00030795]
[1646672345303,1.336683,38860.0,38859.0,0.00030795]
[1646672345503,1.436683,38860.0,38859.0,0.00030795]
[1646672345705,1.512003,38860.0,38859.0,0.00030795]
[1646672346005,0.064382,38856.0,38850.0,0.16475234]
[1646672346200,0.7727,38858.0,38850.0,0.16475234]
[1646672346201,0.0515,38855.0,38850.0,0.16475234]
[1646672346401,0.0515,38854.0,38850.0,0.16475234]
[1646672346601,0.0515,38853.0,38850.0,0.16475234]
[1646672346801,0.0515,38852.0,38850.0,0.16475234]
[1646672347202,0.0515,38852.0,38850.0,0.16504495]
[1646672347604,0.0465,38852.0,38850.0,0.21504495]
[1646672347803,0.0465,38852.0,38850.0,0.00029261]
[1646672348202,1.0727,38851.0,38846.0,0.03782471]
[1646672348452,0.06439,38850.0,38849.0,0.00029261]
[1646672348854,1.05532547,38850.0,38849.0,0.00029261]
[1646672349549,1.05532547,38850.0,38846.0,0.03782471]
[1646672350155,0.22590474,38849.0,38846.0,0.03782471]
[1646672350354,0.22590474,38849.0,38845.0,0.128766]
[1646672350355,1.0227,38847.0,38845.0,0.128766]
[1646672350560,1.0227,38847.0,38841.0,0.02206204]
[1646672350561,1.29952,38846.0,38841.0,0.02206204]
[1646672350756,2.29802,38842.0,38834.0,0.001]
[1646672351053,1.04802,38836.0,38833.0,0.5]
[1646672351254,0.84081064,38834.0,38829.0,0.001]
[1646672351454,0.79802,38831.0,38829.0,0.0001]
[1646672351655,1.1242,38830.0,38829.0,0.0001]
[1646672351863,1.1242,38830.0,38821.0,0.005]
[1646672351864,0.02532,38824.0,38817.0,0.001]
[1646672352104,0.79802,38819.0,38815.0,0.001]
[1646672352400,0.3,38824.0,38815.0,0.001]
[1646672352401,1.04463,38817.0,38815.0,0.001]
[1646672352601,1.12069,38816.0,38815.0,0.001]
[1646672352902,1.21718,38816.0,38815.0,0.001]
[1646672353098,0.91718,38816.0,38815.0,0.001]
[1646672354701,0.0515,38816.0,38815.0,0.001]
[1646672355199,0.3,38828.0,38819.0,0.19804015]
[1646672355200,0.0515,38821.0,38819.0,0.19804015]
[1646672355600,0.0515,38821.0,38819.0,0.24804015]
[1646672356080,0.0515,38821.0,38820.0,0.03278623]
[1646672356275,0.0515,38821.0,38819.0,0.314331]
[1646672357075,0.24661,38826.0,38819.0,0.314331]
[1646672357276,0.003,38821.0,38819.0,0.13266315]
[1646672357477,0.0504,38821.0,38819.0,0.13266315]
[1646672357874,0.0504,38821.0,38820.0,0.03453996]
[1646672358079,0.003,38821.0,38820.0,0.03453996]
[1646672358473,0.0474,38831.0,38820.0,0.19698587]
[1646672358688,0.0474,38831.0,38827.0,0.16533082]
[1646672358875,0.01286,38836.0,38827.0,0.19439243]
[1646672359075,2.26630461,38839.0,38827.0,0.19439243]
[1646672359280,2.27916461,38839.0,38827.0,0.31289201]
[1646672359600,0.20943149,38838.0,38829.0,0.17053785]
[1646672359907,0.01286,38842.0,38834.0,0.064405]
[1646672360106,0.24661,38847.0,38834.0,0.114405]
[1646672360501,0.24661,38847.0,38836.0,0.00029953]
[1646672360707,0.21088176,38837.0,38836.0,0.00029953]
[1646672360907,0.98358176,38837.0,38836.0,0.00029953]
[1646672361103,0.19598207,38845.0,38836.0,0.00029953]
[1646672361104,0.05,38845.0,38836.0,0.00029953]
[1646672361303,0.003,38837.0,38836.0,0.00029953]
[1646672361502,0.003,38837.0,38834.0,0.02692802]
[1646672362102,0.003,38837.0,38836.0,0.32036595]
[1646672362301,0.003,38837.0,38836.0,0.37036595]
[1646672363108,0.24661,38849.0,38839.0,0.064393]
[1646672363109,1.31931,38849.0,38839.0,0.064393]
[1646672363352,0.7727,38848.0,38839.0,0.064393]
[1646672363548,0.7727,38848.0,38839.0,0.09263246]
[1646672363853,0.1711139,38843.0,38839.0,0.09263246]
[1646672364051,0.9438139,38843.0,38839.0,0.064393]
[1646672364251,1.2548279,38843.0,38842.0,0.00029254]
[1646672364453,1.2548279,38843.0,38839.0,0.00636997]
[1646672364454,0.79802,38841.0,38839.0,0.00636997]
[1646672364652,0.79802,38841.0,38831.0,0.0679]
[1646672364950,0.79802,38841.0,38831.0,0.132308]
[1646672365151,0.7727,38837.0,38832.0,0.19213525]
[1646672365351,0.24232728,38838.0,38832.0,0.19213525]
[1646672365551,0.24232728,38838.0,38832.0,0.22434889]
[1646672365751,0.24232728,38838.0,38832.0,0.35316689]
[1646672365956,1.01502728,38838.0,38832.0,0.35316689]
[1646672366152,0.43882171,38838.0,38833.0,0.05]
[1646672366651,0.19649443,38838.0,38833.0,0.05]
[1646672367309,0.7727,38837.0,38833.0,0.05]
[1646672367511,0.19949443,38838.0,38831.0,0.0679]
[1646672367512,0.79802,38835.0,38831.0,0.0679]
[1646672367715,0.79802,38833.0,38821.0,0.128854]
[1646672367909,0.24661,38829.0,38823.0,0.0678]
[1646672368108,0.29401,38829.0,38823.0,0.0678]
[1646672368311,0.7727,38824.0,38823.0,0.0678]
[1646672368512,0.7727,38824.0,38815.0,0.001]
[1646672368513,0.7727,38816.0,38815.0,0.001]
[1646672368708,0.29401,38817.0,38815.0,0.001]
[1646672368908,0.1,38816.0,38815.0,0.001]
[1646672369308,0.1,38816.0,38815.0,0.16499139]
[1646672369508,0.0474,38817.0,38815.0,0.16499139]
[1646672370316,0.1,38823.0,38815.0,0.16499139]
[1646672370511,0.1,38823.0,38815.0,0.001]
[1646672370711,0.064433,38823.0,38815.0,0.001]
[1646672370964,0.064433,38823.0,38816.0,0.064433]
[1646672371369,0.064433,38823.0,38817.0,0.00032875]
[1646672371963,0.064433,38823.0,38817.0,0.16407161]
[1646672372165,0.064433,38823.0,38818.0,0.05]
[1646672372366,0.24661,38820.0,38818.0,0.05]
[1646672372566,0.064447,38819.0,38818.0,0.00032875]
[1646672372966,0.164447,38819.0,38818.0,0.00032875]
[1646672373567,0.32096391,38819.0,38815.0,0.001]
[1646672373768,0.53738077,38819.0,38817.0,0.00031734]
[1646672374168,0.32096391,38819.0,38817.0,0.00031734]
[1646672374808,0.32096391,38819.0,38815.0,0.001]
[1646672375009,0.32096391,38819.0,38816.0,0.00031734]
[1646672375711,0.0474,38818.0,38816.0,0.00031734]
[1646672375912,1.04463,38817.0,38816.0,0.00031734]
[1646672376109,1.04463,38817.0,38815.0,0.001]
[1646672376110,1.09203,38817.0,38815.0,0.001]
[1646672376411,0.8727,38816.0,38815.0,0.001]
[1646672376607,1.13950131,38816.0,38815.0,0.001]
[1646672376808,1.26057979,38816.0,38815.0,0.001]
[1646672377210,1.26357979,38816.0,38815.0,0.001]
[1646672377409,1.26357979,38816.0,38810.0,0.003]
[1646672377410,1.26357979,38816.0,38810.0,0.001]
[1646672377411,0.7727,38811.0,38810.0,0.001]
[1646672377612,0.8201,38811.0,38810.0,0.001]
[1646672377810,0.9201,38811.0,38810.0,0.001]
[1646672378210,0.1474,38811.0,38810.0,0.001]
[1646672379355,0.0474,38811.0,38810.0,0.001]
[1646672380059,0.8201,38811.0,38810.0,0.001]
[1646672380257,0.9201,38811.0,38810.0,0.001]
[1646672381258,0.9231,38811.0,38810.0,0.001]
[1646672382508,0.9201,38811.0,38810.0,0.001]
[1646672386563,0.228927,38815.0,38810.0,0.001]
[1646672386564,0.01288,38814.0,38810.0,0.001]
[1646672386770,0.01288,38818.0,38810.0,0.001]
[1646672386965,0.0999,38819.0,38810.0,0.001]
[1646672387165,0.01288,38823.0,38810.0,0.001]
[1646672387365,0.65472575,38822.0,38820.0,0.26788723]
[1646672387562,1.19661,38824.0,38820.0,0.26788723]
[1646672387563,1.01931,38824.0,38820.0,0.26788723]
[1646672387763,0.24661,38829.0,38820.0,0.26788723]
[1646672387964,0.01286,38830.0,38821.0,0.3]
[1646672388167,0.0999,38828.0,38820.0,0.25377175]
[1646672388363,0.01286,38832.0,38822.0,0.21732887]
[1646672388562,0.24661,38829.0,38823.0,0.17389427]
[1646672388765,0.24661,38829.0,38823.0,0.47389427]
[1646672388766,0.01286,38829.0,38823.0,0.47389427]
[1646672388967,0.24661,38834.0,38823.0,0.58831527]
[1646672389164,0.4999,38842.0,38823.0,0.58831527]
[1646672389165,0.015,38844.0,38823.0,0.58831527]
[1646672389369,0.5,38842.0,38830.0,0.15]
[1646672389610,0.5,38842.0,38831.0,0.3]
[1646672389809,0.25270388,38840.0,38838.0,0.064393]
[1646672390009,0.25270388,38840.0,38830.0,0.2498]
[1646672390610,1.02540388,38840.0,38830.0,0.2498]
[1646672390811,0.27997165,38834.0,38830.0,0.2498]
[1646672391212,0.064415,38836.0,38830.0,0.2498]
[1646672391611,0.004,38840.0,38830.0,0.2498]
[1646672391815,0.004,38840.0,38830.0,0.5498]
[1646672392213,0.25937508,38836.0,38830.0,0.314211]
[1646672392413,0.25937508,38836.0,38831.0,0.17192314]
[1646672393013,0.068411,38840.0,38831.0,0.17192314]
[1646672393214,0.1499,38838.0,38832.0,0.00032384]
[1646672393463,0.460921,38838.0,38832.0,0.00032384]
[1646672393666,0.7727,38835.0,38832.0,0.00032384]
[1646672393865,0.7727,38833.0,38832.0,0.00032384]
[1646672394062,0.7727,38833.0,38832.0,0.00020283]
[1646672394264,0.7727,38833.0,38825.0,0.128826]
[1646672394265,0.7727,38833.0,38827.0,0.18878685]
[1646672394463,0.837123,38833.0,38832.0,0.00032384]
[1646672395064,0.064423,38833.0,38832.0,0.00032384]
[1646672395466,0.064423,38833.0,38823.0,0.05]
[1646672395669,0.311031,38832.0,38823.0,0.06287]
[1646672395867,0.15,38831.0,38824.0,0.12372514]
[1646672396169,0.7727,38829.0,38823.0,0.05]
[1646672396368,0.111824,38830.0,38827.0,0.17378497]
[1646672396570,0.34661,38837.0,38827.0,0.17378497]
[1646672396767,0.34661,38837.0,38827.0,0.22378497]
[1646672396768,0.05,38836.0,38827.0,0.22378497]
[1646672396968,0.05,38836.0,38828.0,0.064411]
[1646672397227,0.05,38836.0,38829.0,0.3]
[1646672397421,0.05,38836.0,38833.0,0.18506916]
[1646672397625,0.837108,38840.0,38833.0,0.18506916]
[1646672397626,0.064406,38841.0,38833.0,0.48506916]
[1646672397824,0.4726,38848.0,38833.0,0.48506916]
[1646672398022,0.01286,38848.0,38833.0,0.48506916]
[1646672398223,0.7727,38848.0,38833.0,0.62479216]
[1646672398424,0.5458,38849.0,38833.0,0.65556654]
[1646672398623,0.28455642,38847.0,38841.0,0.22297949]
[1646672398925,0.19197735,38848.0,38841.0,0.57297949]
[1646672399123,0.78556,38854.0,38841.0,0.57297949]
[1646672399325,0.01286,38854.0,38841.0,0.57297949]
[1646672399625,0.00129463,38857.0,38841.0,0.66176546]
[1646672399626,0.01286,38856.0,38841.0,0.66176546]
[1646672399825,0.2701926,38855.0,38850.0,0.20920047]
[1646672400023,0.00129463,38857.0,38850.0,0.20920047]
[1646672400226,0.16243816,38856.0,38850.0,0.20920047]
[1646672400422,0.16243816,38856.0,38850.0,0.064378]
[1646672400622,0.16243816,38856.0,38846.0,0.128756]